[Event "Titled Tuesday Blitz July 18 Late 2023"]
[White "Navyblue1"]
[Black "Tqebuchava, Zurab"]
[BlackFideId "13601113"]
[WhiteElo "1858"]
[BlackElo "2113"]
[Result "1-0"]
[Round "9"]
[TimeControl "180+2"]
[Date "2023.07.18"]
[WhiteClock "0:00:05"]
[BlackClock "0:00:00"]
[Board "117"]

1. d4 {[%clk 0:03:00]}  d6 {[%clk 0:02:59]} 2. e4 {[%clk 0:02:55]}  Nf6 {[%clk 0:02:59]} 3. Bd3 {[%clk 0:02:52]}  Nbd7 {[%clk 0:02:57]} 4. c4 {[%clk 0:02:52]}  e5 {[%clk 0:02:55]} 5. d5 {[%clk 0:02:50]}  g6 {[%clk 0:02:50]} 6. Nc3 {[%clk 0:02:49]}  Bg7 {[%clk 0:02:50]} 7. h3 {[%clk 0:02:46]}  O-O {[%clk 0:02:48]} 8. Nf3 {[%clk 0:02:46]}  Nc5 {[%clk 0:02:45]} 9. O-O {[%clk 0:02:40]}  Nxd3 {[%clk 0:02:42]} 10. Qxd3 {[%clk 0:02:39]}  Nh5 {[%clk 0:02:39]} 11. b4 {[%clk 0:01:43]}  a5 {[%clk 0:02:37]} 12. bxa5 {[%clk 0:01:39]}  Rxa5 {[%clk 0:02:36]} 13. Bd2 {[%clk 0:01:30]}  Nf4 {[%clk 0:02:27]} 14. Qc2 {[%clk 0:01:26]}  b6 {[%clk 0:02:16]} 15. Rae1 {[%clk 0:00:53]}  Ba6 {[%clk 0:02:05]} 16. Nb5 {[%clk 0:00:48]}  Rxb5 {[%clk 0:01:51]} 17. cxb5 {[%clk 0:00:47]}  Bxb5 {[%clk 0:01:50]} 18. Bxf4 {[%clk 0:00:44]}  exf4 {[%clk 0:01:40]} 19. Rc1 {[%clk 0:00:42]}  Bxf1 {[%clk 0:01:38]} 20. Kxf1 {[%clk 0:00:41]}  Qe7 {[%clk 0:01:24]} 21. Qxc7 {[%clk 0:00:24]}  Qxe4 {[%clk 0:01:20]} 22. Qxd6 {[%clk 0:00:20]}  Bb2 {[%clk 0:01:02]} 23. Re1 {[%clk 0:00:18]}  Qc4+ {[%clk 0:00:57]} 24. Kg1 {[%clk 0:00:18]}  Qxa2 {[%clk 0:00:53]} 25. Qxb6 {[%clk 0:00:17]}  Bc3 {[%clk 0:00:44]} 26. Rd1 {[%clk 0:00:15]}  Qa4 {[%clk 0:00:31]} 27. Rf1 {[%clk 0:00:14]}  h6 {[%clk 0:00:25]} 28. Qc6 {[%clk 0:00:12]}  Qxc6 {[%clk 0:00:23]} 29. dxc6 {[%clk 0:00:12]}  Rc8 {[%clk 0:00:23]} 30. Rc1 {[%clk 0:00:09]}  Rxc6 {[%clk 0:00:22]} 31. Rc2 {[%clk 0:00:07]}  Rc7 {[%clk 0:00:20]} 32. Kf1 {[%clk 0:00:07]}  Be5 {[%clk 0:00:15]} 33. Rxc7 {[%clk 0:00:06]}  Bxc7 {[%clk 0:00:15]} 34. Ke2 {[%clk 0:00:07]}  Kg7 {[%clk 0:00:14]} 35. h4 {[%clk 0:00:06]}  Kf6 {[%clk 0:00:13]} 36. Kd3 {[%clk 0:00:06]}  Bb6 {[%clk 0:00:10]} 37. Ke4 {[%clk 0:00:06]}  g5 {[%clk 0:00:09]} 38. hxg5+ {[%clk 0:00:06]}  hxg5 {[%clk 0:00:10]} 39. Ne5 {[%clk 0:00:05]}  Bc7 {[%clk 0:00:07]} 40. Ng4+ {[%clk 0:00:05]}  Kg6 {[%clk 0:00:07]} 41. Ne5+ {[%clk 0:00:04]}  Bxe5 {[%clk 0:00:06]} 42. Kxe5 {[%clk 0:00:04]}  Kh5 {[%clk 0:00:03]} 43. Kf5 {[%clk 0:00:04]}  Kh4 {[%clk 0:00:02]} 44. Kf6 {[%clk 0:00:03]}  g4 {[%clk 0:00:01]} 45. Kxf7 {[%clk 0:00:03]}  f3 {[%clk 0:00:01]} 46. g3+ {[%clk 0:00:03]}  Kh3 {[%clk 0:00:01]} 47. Kf6 {[%clk 0:00:04]}  Kg2 {[%clk 0:00:02]} 48. Kg5 {[%clk 0:00:04]}  Kxf2 {[%clk 0:00:02]} 49. Kxg4 {[%clk 0:00:05]}  Ke2 {[%clk 0:00:02]} 50. Kg5 {[%clk 0:00:06]}  f2 {[%clk 0:00:03]} 51. Kh6 {[%clk 0:00:05]}  f1=Q {[%clk 0:00:03]} 52. g4 {[%clk 0:00:06]}  Qg2 {[%clk 0:00:03]} 53. g5 {[%clk 0:00:06]}  Kf3 {[%clk 0:00:04]} 54. g6 {[%clk 0:00:06]}  Qh3+ {[%clk 0:00:04]} 55. Kg7 {[%clk 0:00:07]}  Kf4 {[%clk 0:00:03]} 56. Kf8 {[%clk 0:00:07]}  Qh8+ {[%clk 0:00:02]} 57. Kf7 {[%clk 0:00:06]}  Kg5 {[%clk 0:00:02]} 58. g7 {[%clk 0:00:06]}  Qh7 {[%clk 0:00:02]} 59. Kf8 {[%clk 0:00:06]}  Qf5+ {[%clk 0:00:00]} 60. Ke8 {[%clk 0:00:05]} 1-0


[Site "https://www.chess.com"]

[Event "Titled Tuesday Blitz July 18 Late 2023"]
[White "Burke, Paul"]
[Black "Campos, Maria Jose"]
[WhiteFideId "2605767"]
[BlackFideId "146803"]
[WhiteElo "1981"]
[BlackElo "2369"]
[Result "0-1"]
[Round "9"]
[TimeControl "180+2"]
[Date "2023.07.18"]
[WhiteClock "0:00:00"]
[BlackClock "0:00:12"]
[Board "118"]

1. e4 {[%clk 0:03:00]}  e5 {[%clk 0:02:27]} 2. Nf3 {[%clk 0:02:58]}  Nc6 {[%clk 0:02:28]} 3. Bc4 {[%clk 0:02:57]}  Nf6 {[%clk 0:02:28]} 4. d4 {[%clk 0:02:56]}  exd4 {[%clk 0:02:27]} 5. O-O {[%clk 0:02:56]}  Nxe4 {[%clk 0:02:26]} 6. Re1 {[%clk 0:02:56]}  d5 {[%clk 0:02:26]} 7. Bxd5 {[%clk 0:02:56]}  Qxd5 {[%clk 0:02:25]} 8. Nc3 {[%clk 0:02:56]}  Qd7 {[%clk 0:02:25]} 9. Nxe4 {[%clk 0:02:55]}  Be7 {[%clk 0:02:26]} 10. Nfg5 {[%clk 0:02:48]}  h6 {[%clk 0:02:17]} 11. Nf3 {[%clk 0:02:22]}  O-O {[%clk 0:02:17]} 12. Bf4 {[%clk 0:02:19]}  f5 {[%clk 0:02:10]} 13. Ng3 {[%clk 0:02:00]}  Bd6 {[%clk 0:02:05]} 14. Bxd6 {[%clk 0:01:56]}  Qxd6 {[%clk 0:02:05]} 15. Qd2 {[%clk 0:01:49]}  Be6 {[%clk 0:02:02]} 16. Rad1 {[%clk 0:01:44]}  Rad8 {[%clk 0:02:01]} 17. b3 {[%clk 0:01:42]}  Bc8 {[%clk 0:01:48]} 18. Qd3 {[%clk 0:01:32]}  Qf6 {[%clk 0:01:39]} 19. Qc4+ {[%clk 0:01:26]}  Kh8 {[%clk 0:01:38]} 20. a4 {[%clk 0:01:13]}  f4 {[%clk 0:01:28]} 21. Ne4 {[%clk 0:01:11]}  Qg6 {[%clk 0:01:28]} 22. Nc5 {[%clk 0:00:35]}  Bg4 {[%clk 0:01:19]} 23. Nh4 {[%clk 0:00:27]}  Qh5 {[%clk 0:01:13]} 24. f3 {[%clk 0:00:25]}  Bc8 {[%clk 0:00:49]} 25. g3 {[%clk 0:00:23]}  fxg3 {[%clk 0:00:49]} 26. hxg3 {[%clk 0:00:23]}  Ne5 {[%clk 0:00:46]} 27. Qe2 {[%clk 0:00:17]}  Nxf3+ {[%clk 0:00:45]} 28. Nxf3 {[%clk 0:00:16]}  Qxc5 {[%clk 0:00:45]} 29. Ne5 {[%clk 0:00:13]}  Bf5 {[%clk 0:00:41]} 30. Qh5 {[%clk 0:00:10]}  d3+ {[%clk 0:00:36]} 31. Kg2 {[%clk 0:00:08]}  dxc2 {[%clk 0:00:28]} 32. Ng6+ {[%clk 0:00:07]}  Kg8 {[%clk 0:00:19]} 33. Rxd8 {[%clk 0:00:00]}  Be4+ {[%clk 0:00:12]} 0-1


[Site "https://www.chess.com"]

[Event "Titled Tuesday Blitz July 18 Late 2023"]
[White "Martinez Alcantara, Jose Eduardo"]
[Black "He, Anthony"]
[WhiteFideId "3805662"]
[BlackFideId "2088215"]
[WhiteElo "3058"]
[BlackElo "2976"]
[Result "1-0"]
[Round "10"]
[TimeControl "180+2"]
[Date "2023.07.18"]
[WhiteClock "0:00:26"]
[BlackClock "0:00:26"]
[Board "5"]

1. e4 {[%clk 0:03:00]}  c6 {[%clk 0:02:58]} 2. d4 {[%clk 0:03:01]}  d5 {[%clk 0:02:58]} 3. e5 {[%clk 0:03:01]}  c5 {[%clk 0:02:58]} 4. dxc5 {[%clk 0:03:02]}  e6 {[%clk 0:02:59]} 5. c3 {[%clk 0:03:01]}  Nc6 {[%clk 0:02:57]} 6. Nf3 {[%clk 0:03:01]}  Bxc5 {[%clk 0:02:57]} 7. Bd3 {[%clk 0:02:57]}  Nge7 {[%clk 0:02:56]} 8. O-O {[%clk 0:02:56]}  Qc7 {[%clk 0:02:50]} 9. Qe2 {[%clk 0:02:50]}  a6 {[%clk 0:02:48]} 10. Bf4 {[%clk 0:02:47]}  Bd7 {[%clk 0:02:47]} 11. Bg3 {[%clk 0:02:46]}  Ba7 {[%clk 0:02:44]} 12. Nbd2 {[%clk 0:02:44]}  Ng6 {[%clk 0:02:38]} 13. Rac1 {[%clk 0:02:24]}  O-O {[%clk 0:02:37]} 14. h4 {[%clk 0:02:20]}  f6 {[%clk 0:02:26]} 15. Bxg6 {[%clk 0:02:20]}  hxg6 {[%clk 0:02:26]} 16. c4 {[%clk 0:02:20]}  fxe5 {[%clk 0:02:19]} 17. cxd5 {[%clk 0:02:18]}  exd5 {[%clk 0:02:18]} 18. Nxe5 {[%clk 0:02:14]}  Rae8 {[%clk 0:02:11]} 19. Ndf3 {[%clk 0:02:12]}  Bg4 {[%clk 0:02:02]} 20. Nxc6 {[%clk 0:01:05]}  Qxg3 {[%clk 0:01:54]} 21. Nxa7 {[%clk 0:00:58]}  Bxf3 {[%clk 0:01:44]} 22. Qxf3 {[%clk 0:00:52]}  Qxf3 {[%clk 0:01:23]} 23. gxf3 {[%clk 0:00:51]}  Rxf3 {[%clk 0:01:21]} 24. Rc8 {[%clk 0:00:40]}  Rff8 {[%clk 0:01:14]} 25. Rfc1 {[%clk 0:00:38]}  Kh7 {[%clk 0:01:09]} 26. Rxe8 {[%clk 0:00:37]}  Rxe8 {[%clk 0:01:10]} 27. Rc2 {[%clk 0:00:32]}  Re4 {[%clk 0:01:08]} 28. Nc8 {[%clk 0:00:32]}  Rxh4 {[%clk 0:01:05]} 29. Rd2 {[%clk 0:00:32]}  d4 {[%clk 0:00:59]} 30. Nd6 {[%clk 0:00:32]}  b5 {[%clk 0:00:58]} 31. Nb7 {[%clk 0:00:32]}  g5 {[%clk 0:00:55]} 32. Nc5 {[%clk 0:00:32]}  Kg6 {[%clk 0:00:50]} 33. Nb3 {[%clk 0:00:32]}  Kf5 {[%clk 0:00:48]} 34. Nxd4+ {[%clk 0:00:32]}  Ke4 {[%clk 0:00:47]} 35. Ne6 {[%clk 0:00:29]}  g4 {[%clk 0:00:41]} 36. Kg2 {[%clk 0:00:26]}  g6 {[%clk 0:00:33]} 37. Nc5+ {[%clk 0:00:26]}  Ke5 {[%clk 0:00:28]} 38. Nxa6 {[%clk 0:00:26]}  Rh7 {[%clk 0:00:26]} 39. Nc5 {[%clk 0:00:26]} 1-0


[Site "https://www.chess.com"]

[Event "Titled Tuesday Blitz July 18 Late 2023"]
[White "Svane, Frederik"]
[Black "Bortnyk, Olexandr"]
[WhiteFideId "12923044"]
[BlackFideId "14120828"]
[WhiteElo "2976"]
[BlackElo "3030"]
[Result "0-1"]
[Round "10"]
[TimeControl "180+2"]
[Date "2023.07.18"]
[WhiteClock "0:00:16"]
[BlackClock "0:00:25"]
[Board "6"]

1. c4 {[%clk 0:03:00]}  b6 {[%clk 0:02:47]} 2. Nc3 {[%clk 0:02:58]}  Bb7 {[%clk 0:02:45]} 3. e4 {[%clk 0:02:59]}  e5 {[%clk 0:02:44]} 4. Nf3 {[%clk 0:02:57]}  Nc6 {[%clk 0:02:34]} 5. a3 {[%clk 0:02:57]}  a5 {[%clk 0:02:31]} 6. Be2 {[%clk 0:02:56]}  Bc5 {[%clk 0:02:29]} 7. Nxe5 {[%clk 0:02:54]}  Nxe5 {[%clk 0:02:01]} 8. d4 {[%clk 0:02:54]}  Bd6 {[%clk 0:02:02]} 9. O-O {[%clk 0:02:30]}  Ng6 {[%clk 0:01:58]} 10. f4 {[%clk 0:02:29]}  c5 {[%clk 0:01:56]} 11. e5 {[%clk 0:02:07]}  cxd4 {[%clk 0:01:53]} 12. exd6 {[%clk 0:02:08]}  dxc3 {[%clk 0:01:53]} 13. Qd4 {[%clk 0:02:08]}  Qf6 {[%clk 0:01:48]} 14. Qxb6 {[%clk 0:02:08]}  Bc6 {[%clk 0:01:41]} 15. Be3 {[%clk 0:01:42]}  Qxd6 {[%clk 0:01:26]} 16. Rae1 {[%clk 0:01:39]}  N8e7 {[%clk 0:01:21]} 17. f5 {[%clk 0:01:18]}  Ne5 {[%clk 0:01:17]} 18. Bc5 {[%clk 0:01:19]}  Qf6 {[%clk 0:01:00]} 19. Qc7 {[%clk 0:00:37]}  O-O {[%clk 0:00:44]} 20. Bh5 {[%clk 0:00:34]}  Qg5 {[%clk 0:00:42]} 21. Re2 {[%clk 0:00:30]}  Qxh5 {[%clk 0:00:36]} 22. Qxe5 {[%clk 0:00:30]}  f6 {[%clk 0:00:28]} 23. Qxe7 {[%clk 0:00:30]}  Rfe8 {[%clk 0:00:27]} 24. bxc3 {[%clk 0:00:16]}  Qxe2 {[%clk 0:00:25]} 0-1


[Site "https://www.chess.com"]

[Event "Titled Tuesday Blitz July 18 Late 2023"]
[White "Van Foreest, Jorden"]
[Black "Andreikin, Dmitry"]
[WhiteFideId "1039784"]
[BlackFideId "4158814"]
[WhiteElo "2952"]
[BlackElo "2999"]
[Result "0-1"]
[Round "10"]
[TimeControl "180+2"]
[Date "2023.07.18"]
[WhiteClock "0:00:29"]
[BlackClock "0:02:20"]
[Board "8"]

1. d4 {[%clk 0:03:00]}  Nf6 {[%clk 0:02:59]} 2. Nf3 {[%clk 0:03:01]}  e6 {[%clk 0:02:59]} 3. Bf4 {[%clk 0:03:01]}  b6 {[%clk 0:02:58]} 4. e3 {[%clk 0:03:02]}  Bb7 {[%clk 0:02:59]} 5. Nbd2 {[%clk 0:02:57]}  Nh5 {[%clk 0:02:58]} 6. Bg5 {[%clk 0:02:55]}  Be7 {[%clk 0:02:59]} 7. Bxe7 {[%clk 0:02:55]}  Qxe7 {[%clk 0:03:00]} 8. Bd3 {[%clk 0:02:55]}  d6 {[%clk 0:03:00]} 9. Qe2 {[%clk 0:02:54]}  a6 {[%clk 0:03:00]} 10. h4 {[%clk 0:02:52]}  Nd7 {[%clk 0:02:58]} 11. g4 {[%clk 0:02:51]}  Nhf6 {[%clk 0:02:58]} 12. g5 {[%clk 0:02:48]}  Nd5 {[%clk 0:02:58]} 13. a3 {[%clk 0:02:45]}  c5 {[%clk 0:02:56]} 14. O-O-O {[%clk 0:02:42]}  b5 {[%clk 0:02:54]} 15. dxc5 {[%clk 0:02:28]}  Nxc5 {[%clk 0:02:55]} 16. Kb1 {[%clk 0:02:28]}  b4 {[%clk 0:02:47]} 17. Nc4 {[%clk 0:01:51]}  bxa3 {[%clk 0:02:34]} 18. Nxa3 {[%clk 0:01:51]}  Qc7 {[%clk 0:02:30]} 19. Rhg1 {[%clk 0:01:50]}  Na4 {[%clk 0:02:26]} 20. Qd2 {[%clk 0:01:14]}  Ndc3+ {[%clk 0:02:26]} 21. bxc3 {[%clk 0:01:14]}  Bxf3 {[%clk 0:02:26]} 22. Rc1 {[%clk 0:00:29]}  Nxc3+ {[%clk 0:02:20]} 0-1


[Site "https://www.chess.com"]

[Event "Titled Tuesday Blitz July 18 Late 2023"]
[White "Tristan, Leonardo"]
[Black "Bluebaum, Matthias"]
[WhiteFideId "113816"]
[BlackFideId "24651516"]
[WhiteElo "2794"]
[BlackElo "3005"]
[Result "0-1"]
[Round "10"]
[TimeControl "180+2"]
[Date "2023.07.18"]
[WhiteClock "0:00:00"]
[BlackClock "0:01:44"]
[Board "13"]

1. d4 {[%clk 0:03:00]}  d5 {[%clk 0:02:59]} 2. Nf3 {[%clk 0:03:01]}  e6 {[%clk 0:03:00]} 3. Bf4 {[%clk 0:03:01]}  c5 {[%clk 0:03:00]} 4. e3 {[%clk 0:03:01]}  Nc6 {[%clk 0:03:00]} 5. Nbd2 {[%clk 0:02:54]}  Bd6 {[%clk 0:03:00]} 6. Bg3 {[%clk 0:02:47]}  Bxg3 {[%clk 0:02:59]} 7. hxg3 {[%clk 0:02:47]}  Qb6 {[%clk 0:03:00]} 8. dxc5 {[%clk 0:02:43]}  Qxb2 {[%clk 0:03:00]} 9. Bd3 {[%clk 0:02:38]}  Nf6 {[%clk 0:02:56]} 10. O-O {[%clk 0:02:37]}  O-O {[%clk 0:02:49]} 11. c4 {[%clk 0:02:14]}  Rd8 {[%clk 0:02:49]} 12. Qb3 {[%clk 0:02:04]}  Qxb3 {[%clk 0:02:45]} 13. Nxb3 {[%clk 0:02:04]}  dxc4 {[%clk 0:02:31]} 14. Bxc4 {[%clk 0:02:04]}  Bd7 {[%clk 0:02:32]} 15. Rab1 {[%clk 0:01:49]}  Rac8 {[%clk 0:02:28]} 16. Rfd1 {[%clk 0:01:37]}  Kf8 {[%clk 0:02:28]} 17. Bb5 {[%clk 0:01:21]}  Ne4 {[%clk 0:02:20]} 18. Rbc1 {[%clk 0:00:45]}  Nb8 {[%clk 0:02:13]} 19. Bd3 {[%clk 0:00:42]}  Nf6 {[%clk 0:02:11]} 20. Ne5 {[%clk 0:00:39]}  Ba4 {[%clk 0:02:11]} 21. Be2 {[%clk 0:00:25]}  Nbd7 {[%clk 0:02:08]} 22. Nxd7+ {[%clk 0:00:18]}  Rxd7 {[%clk 0:02:09]} 23. Bf3 {[%clk 0:00:14]}  Rxd1+ {[%clk 0:02:05]} 24. Rxd1 {[%clk 0:00:14]}  Bxb3 {[%clk 0:02:03]} 25. axb3 {[%clk 0:00:15]}  Rxc5 {[%clk 0:02:03]} 26. Rd8+ {[%clk 0:00:11]}  Ke7 {[%clk 0:02:03]} 27. Rb8 {[%clk 0:00:11]}  Rb5 {[%clk 0:01:57]} 28. Rxb7+ {[%clk 0:00:11]}  Rxb7 {[%clk 0:01:57]} 29. Bxb7 {[%clk 0:00:12]}  Kd6 {[%clk 0:01:58]} 30. Kf1 {[%clk 0:00:09]}  Kc5 {[%clk 0:01:58]} 31. Ba6 {[%clk 0:00:09]}  Kb4 {[%clk 0:01:56]} 32. Ke2 {[%clk 0:00:04]}  Ne4 {[%clk 0:01:53]} 33. Bd3 {[%clk 0:00:01]}  Nc3+ {[%clk 0:01:52]} 34. Kd2 {[%clk 0:00:02]}  h6 {[%clk 0:01:50]} 35. Kc2 {[%clk 0:00:02]}  Nd5 {[%clk 0:01:45]} 36. Bc4 {[%clk 0:00:03]}  Nf6 {[%clk 0:01:45]} 37. f3 {[%clk 0:00:03]}  Nd7 {[%clk 0:01:44]} 38. g4 {[%clk 0:00:02]}  a5 {[%clk 0:01:44]} 39. Be2 {[%clk 0:00:02]}  Nc5 {[%clk 0:01:44]} 40. f4 {[%clk 0:00:00]}  Nxb3 {[%clk 0:01:44]} 0-1


[Site "https://www.chess.com"]

[Event "Titled Tuesday Blitz July 18 Late 2023"]
[White "Moskalenko, Alexander"]
[Black "Medarde Santiago, Luis Marcos"]
[WhiteFideId "4155351"]
[BlackFideId "2263076"]
[WhiteElo "2882"]
[BlackElo "2652"]
[Result "1-0"]
[Round "10"]
[TimeControl "180+2"]
[Date "2023.07.18"]
[WhiteClock "0:00:16"]
[BlackClock "0:00:38"]
[Board "17"]

1. Nc3 {[%clk 0:02:55]}  c5 {[%clk 0:03:00]} 2. e4 {[%clk 0:02:55]}  g6 {[%clk 0:03:00]} 3. f4 {[%clk 0:02:54]}  Bg7 {[%clk 0:03:00]} 4. Nf3 {[%clk 0:02:55]}  Nc6 {[%clk 0:03:00]} 5. Bc4 {[%clk 0:02:56]}  e6 {[%clk 0:03:00]} 6. d3 {[%clk 0:02:51]}  Nge7 {[%clk 0:03:00]} 7. e5 {[%clk 0:02:48]}  d5 {[%clk 0:02:56]} 8. exd6 {[%clk 0:02:48]}  Nf5 {[%clk 0:02:56]} 9. Bb5 {[%clk 0:02:45]}  O-O {[%clk 0:02:50]} 10. Bxc6 {[%clk 0:02:44]}  bxc6 {[%clk 0:02:51]} 11. O-O {[%clk 0:02:45]}  Ba6 {[%clk 0:02:04]} 12. Ne5 {[%clk 0:02:23]}  c4 {[%clk 0:02:04]} 13. Nxc4 {[%clk 0:02:21]}  Bxc4 {[%clk 0:01:59]} 14. dxc4 {[%clk 0:02:22]}  Qxd6 {[%clk 0:01:58]} 15. Ne4 {[%clk 0:01:52]}  Qb4 {[%clk 0:01:57]} 16. Qd3 {[%clk 0:01:43]}  Rad8 {[%clk 0:01:57]} 17. Qb3 {[%clk 0:01:43]}  Qa5 {[%clk 0:01:53]} 18. c3 {[%clk 0:01:40]}  Nd6 {[%clk 0:01:53]} 19. Nxd6 {[%clk 0:01:34]}  Qc5+ {[%clk 0:01:54]} 20. Kh1 {[%clk 0:01:30]}  Qxd6 {[%clk 0:01:54]} 21. Be3 {[%clk 0:01:29]}  Qc7 {[%clk 0:01:52]} 22. Rad1 {[%clk 0:01:26]}  Rxd1 {[%clk 0:01:48]} 23. Qxd1 {[%clk 0:01:27]}  Rd8 {[%clk 0:01:48]} 24. Qf3 {[%clk 0:01:17]}  Qa5 {[%clk 0:01:46]} 25. a3 {[%clk 0:01:10]}  Qa6 {[%clk 0:01:46]} 26. Qe4 {[%clk 0:01:06]}  Qa4 {[%clk 0:01:39]} 27. Kg1 {[%clk 0:00:57]}  Rd1 {[%clk 0:01:36]} 28. Rxd1 {[%clk 0:00:48]}  Qxd1+ {[%clk 0:01:37]} 29. Kf2 {[%clk 0:00:48]}  Qb3 {[%clk 0:01:29]} 30. Bc1 {[%clk 0:00:48]}  Qd1 {[%clk 0:01:29]} 31. Qe1 {[%clk 0:00:46]}  Qc2+ {[%clk 0:01:29]} 32. Qd2 {[%clk 0:00:46]}  Qf5 {[%clk 0:01:30]} 33. h3 {[%clk 0:00:41]}  h5 {[%clk 0:01:30]} 34. Qd8+ {[%clk 0:00:34]}  Kh7 {[%clk 0:01:30]} 35. Be3 {[%clk 0:00:34]}  e5 {[%clk 0:01:27]} 36. Qd6 {[%clk 0:00:26]}  Qc2+ {[%clk 0:01:22]} 37. Qd2 {[%clk 0:00:25]}  Qe4 {[%clk 0:01:21]} 38. fxe5 {[%clk 0:00:22]}  Bxe5 {[%clk 0:01:19]} 39. Bd4 {[%clk 0:00:22]}  Qf5+ {[%clk 0:01:13]} 40. Kg1 {[%clk 0:00:22]}  Bf4 {[%clk 0:01:13]} 41. Qe2 {[%clk 0:00:20]}  Qb1+ {[%clk 0:01:13]} 42. Kf2 {[%clk 0:00:19]}  Bc1 {[%clk 0:01:07]} 43. b4 {[%clk 0:00:18]}  Qf5+ {[%clk 0:01:06]} 44. Qf3 {[%clk 0:00:17]}  Qe6 {[%clk 0:01:05]} 45. a4 {[%clk 0:00:16]}  Bd2 {[%clk 0:01:04]} 46. Qe2 {[%clk 0:00:15]}  Qf5+ {[%clk 0:01:05]} 47. Kg1 {[%clk 0:00:16]}  Bh6 {[%clk 0:00:55]} 48. Qe5 {[%clk 0:00:15]}  Qb1+ {[%clk 0:00:51]} 49. Kh2 {[%clk 0:00:15]}  g5 {[%clk 0:00:39]} 50. Qh8+ {[%clk 0:00:13]}  Kg6 {[%clk 0:00:39]} 51. Qf6+ {[%clk 0:00:14]}  Kh7 {[%clk 0:00:39]} 52. Qxf7+ {[%clk 0:00:15]}  Bg7 {[%clk 0:00:38]} 53. Qxg7# {[%clk 0:00:16]} 1-0


[Site "https://www.chess.com"]

[Event "Titled Tuesday Blitz July 18 Late 2023"]
[White "Nihal Sarin"]
[Black "Vovk, Orest"]
[WhiteFideId "25092340"]
[BlackFideId "14113490"]
[WhiteElo "3044"]
[BlackElo "2602"]
[Result "1-0"]
[Round "10"]
[TimeControl "180+2"]
[Date "2023.07.18"]
[WhiteClock "0:03:06"]
[BlackClock "0:00:00"]
[Board "19"]

1. a3 {[%clk 0:03:00]}  g5 {[%clk 0:02:59]} 2. d4 {[%clk 0:03:00]}  h6 {[%clk 0:02:57]} 3. h4 {[%clk 0:03:00]}  g4 {[%clk 0:02:57]} 4. g3 {[%clk 0:03:00]}  Bg7 {[%clk 0:02:57]} 5. Bg2 {[%clk 0:03:01]}  d5 {[%clk 0:02:53]} 6. c3 {[%clk 0:03:01]}  Bf5 {[%clk 0:02:50]} 7. Nd2 {[%clk 0:03:02]}  c6 {[%clk 0:02:50]} 8. e4 {[%clk 0:03:02]}  dxe4 {[%clk 0:02:45]} 9. Nxe4 {[%clk 0:03:03]}  Nf6 {[%clk 0:02:45]} 10. Nxf6+ {[%clk 0:03:03]}  Bxf6 {[%clk 0:02:44]} 11. Ne2 {[%clk 0:03:04]}  Nd7 {[%clk 0:02:39]} 12. O-O {[%clk 0:03:05]}  e5 {[%clk 0:02:33]} 13. Re1 {[%clk 0:03:05]}  Qc7 {[%clk 0:02:25]} 14. dxe5 {[%clk 0:03:05]}  Bxe5 {[%clk 0:02:14]} 15. Nd4 {[%clk 0:03:05]}  Bg6 {[%clk 0:01:58]} 16. Qxg4 {[%clk 0:03:06]}  O-O-O {[%clk 0:01:56]} 17. Rxe5 {[%clk 0:03:06]}  Qxe5 {[%clk 0:01:47]} 18. Bf4 {[%clk 0:03:06]}  Qh5 {[%clk 0:01:32]} 19. Qh3 {[%clk 0:03:06]}  Rhe8 {[%clk 0:01:12]} 20. b4 {[%clk 0:03:06]}  Be4 {[%clk 0:01:03]} 21. Bxe4 {[%clk 0:03:04]}  Rxe4 {[%clk 0:01:03]} 22. Nf5 {[%clk 0:03:05]}  Rxf4 {[%clk 0:01:01]} 23. gxf4 {[%clk 0:03:06]}  Rg8+ {[%clk 0:00:47]} 24. Kf1 {[%clk 0:03:06]}  Qg4 {[%clk 0:00:39]} 25. Qxg4 {[%clk 0:03:06]}  Rxg4 {[%clk 0:00:38]} 26. Re1 {[%clk 0:03:06]}  Rxf4 {[%clk 0:00:27]} 27. Nxh6 {[%clk 0:03:06]}  f6 {[%clk 0:00:20]} 28. h5 {[%clk 0:03:06]}  Rh4 {[%clk 0:00:15]} 29. Re8+ {[%clk 0:03:06]}  Kc7 {[%clk 0:00:15]} 30. Re7 {[%clk 0:03:07]}  Rh1+ {[%clk 0:00:12]} 31. Kg2 {[%clk 0:03:06]}  Rxh5 {[%clk 0:00:13]} 32. Ng4 {[%clk 0:03:06]}  Rg5 {[%clk 0:00:10]} 33. Kh3 {[%clk 0:03:06]}  Kd6 {[%clk 0:00:05]} 34. Rh7 {[%clk 0:03:06]}  Ke6 {[%clk 0:00:04]} 35. f4 {[%clk 0:03:07]}  Rd5 {[%clk 0:00:03]} 36. Kh4 {[%clk 0:03:06]}  Rd1 {[%clk 0:00:03]} 37. Kg3 {[%clk 0:03:04]}  Rd3+ {[%clk 0:00:03]} 38. Kf2 {[%clk 0:03:05]}  Rxc3 {[%clk 0:00:04]} 39. Ne3 {[%clk 0:03:05]}  Rxa3 {[%clk 0:00:00]} 40. f5+ {[%clk 0:03:06]} 1-0


[Site "https://www.chess.com"]

[Event "Titled Tuesday Blitz July 18 Late 2023"]
[White "Fonseca Manrique, Enrique"]
[Black "Pranav, V"]
[WhiteFideId "5114330"]
[BlackFideId "25060783"]
[WhiteElo "2594"]
[BlackElo "2953"]
[Result "0-1"]
[Round "10"]
[TimeControl "180+2"]
[Date "2023.07.18"]
[WhiteClock "0:00:10"]
[BlackClock "0:00:44"]
[Board "20"]

1. e4 {[%clk 0:03:00]}  e5 {[%clk 0:02:58]} 2. Nf3 {[%clk 0:03:01]}  Nc6 {[%clk 0:02:59]} 3. Bb5 {[%clk 0:03:01]}  a6 {[%clk 0:02:59]} 4. Ba4 {[%clk 0:03:01]}  d6 {[%clk 0:03:00]} 5. d4 {[%clk 0:02:49]}  Bd7 {[%clk 0:02:55]} 6. c3 {[%clk 0:02:45]}  Nf6 {[%clk 0:02:54]} 7. O-O {[%clk 0:02:32]}  g6 {[%clk 0:02:51]} 8. Re1 {[%clk 0:02:29]}  Bg7 {[%clk 0:02:50]} 9. h3 {[%clk 0:02:28]}  O-O {[%clk 0:02:49]} 10. a3 {[%clk 0:02:11]}  Re8 {[%clk 0:02:48]} 11. Bc2 {[%clk 0:01:59]}  Nh5 {[%clk 0:02:19]} 12. Bg5 {[%clk 0:01:50]}  Qc8 {[%clk 0:02:18]} 13. d5 {[%clk 0:01:37]}  Ne7 {[%clk 0:02:16]} 14. Nbd2 {[%clk 0:01:34]}  h6 {[%clk 0:02:14]} 15. Be3 {[%clk 0:01:29]}  Rf8 {[%clk 0:02:10]} 16. c4 {[%clk 0:01:24]}  f5 {[%clk 0:02:08]} 17. exf5 {[%clk 0:01:24]}  Bxf5 {[%clk 0:02:09]} 18. Ne4 {[%clk 0:01:21]}  Bd7 {[%clk 0:02:05]} 19. b4 {[%clk 0:01:12]}  Nf5 {[%clk 0:02:04]} 20. Rc1 {[%clk 0:01:06]}  Nxe3 {[%clk 0:02:01]} 21. fxe3 {[%clk 0:01:07]}  a5 {[%clk 0:01:38]} 22. c5 {[%clk 0:01:00]}  axb4 {[%clk 0:01:34]} 23. axb4 {[%clk 0:01:00]}  Bxh3 {[%clk 0:01:34]} 24. gxh3 {[%clk 0:01:00]}  Qxh3 {[%clk 0:01:35]} 25. Nh2 {[%clk 0:00:43]}  Ng3 {[%clk 0:01:03]} 26. Qg4 {[%clk 0:00:37]}  Qxg4 {[%clk 0:01:03]} 27. Nxg4 {[%clk 0:00:37]}  Nf5 {[%clk 0:01:04]} 28. Ra1 {[%clk 0:00:30]}  h5 {[%clk 0:01:01]} 29. Ngf2 {[%clk 0:00:28]}  Bh6 {[%clk 0:01:01]} 30. cxd6 {[%clk 0:00:24]}  cxd6 {[%clk 0:01:02]} 31. Bd3 {[%clk 0:00:18]}  Rxa1 {[%clk 0:01:00]} 32. Rxa1 {[%clk 0:00:18]}  Bxe3 {[%clk 0:01:00]} 33. Kg2 {[%clk 0:00:13]}  Nh4+ {[%clk 0:01:00]} 34. Kg3 {[%clk 0:00:13]}  g5 {[%clk 0:00:56]} 35. Ra2 {[%clk 0:00:12]}  Rf3+ {[%clk 0:00:45]} 36. Kh2 {[%clk 0:00:12]}  g4 {[%clk 0:00:45]} 37. Nh1 {[%clk 0:00:10]}  Rh3# {[%clk 0:00:44]} 0-1


[Site "https://www.chess.com"]